{"text_format":"1","workbook":"xlsx","n_sheets":11,"sheets":["Z1","1Z","Z2","Z3","C1","B1","B2","A1","A2","List2","List1"],"not_rendered":{"charts":0,"images":0,"macros":1,"external_links":1,"defined_names":7,"comments":0,"pivot_tables":0},"unopened":[],"bounds":{"document_bytes":16777216,"sheet_cells":100000,"rows_first":2000,"rows_last":500,"rows_between":2000,"halvings":0,"cell_chars":16384,"cell_head_chars":4096},"cells_cut":0,"cells_raw":0,"read":"whole","date_system":"1900"}

{"sheet":"Z1","index":0,"n_rows":27,"n_cols":24,"rows_kept":27,"cut":false,"hidden":true,"merged":[[1,1,2,4]]}
[]
[null,"Z1"]
[null,null,null,null,null,"Mem. DK","Slaný","Roudnice","NM","DK","LOUNY","Děčín","Hronov","Kralupy","NM"]
[null,1,"Stonawská Gabriella","BKHK",{"$f":"SUM(LARGE(F4:X4,1)+LARGE(F4:X4,2)+LARGE(F4:X4,3))","v":47},15,null,null,11,15,null,null,13,null,17,null,null,null,null,null,null,0,0,0]
[null,2,"Kubušová Viktorie","KKPDY",{"$f":"SUM(LARGE(F5:X5,1)+LARGE(F5:X5,2)+LARGE(F5:X5,3))","v":34},6,null,null,5,12,null,null,7,null,15,null,null,null,null,null,null,0,0,0]
[null,3,"Kodedová Alexandra","HCPZKL",33,12,null,10,null,null,null,11,null,10,null,null,null,null,null,null,null,0,0,0]
[null,4,"Křivánková Sára","KKPDY",30,7,null,null,8,9,null,null,10,null,11,null,null,null,null,null,null,0,0,0]
[null,5,"Syrovátková Anna","HCPZKL",24,9,null,7,null,null,null,8,null,null,null,null,null,null,null,null,null,0,0,0]
[null,6,"Macháčková Kateřina","KKSLA",17,null,null,null,null,null,10,null,null,7,null,null,null,null,null,null,null,0,0,0]
[null,7,"Horáková Aneta","KKSLA",17,null,8,2,null,null,7,null,null,null,null,null,null,null,null,null,null,0,0,0]
[null,8,"Ulrychová Aneta","KKDKNL",15,null,null,null,null,7,null,null,null,null,8,null,null,null,null,null,null,0,0,0]
[null,9,"Beran Josef","SPATRU",14,5,null,null,null,5,null,null,3,null,4,null,null,null,null,null,null,0,0,0]
[null,10,"Hubená Magdalena","KKDKNL",13,2,null,null,null,null,null,null,4,null,7,null,null,null,null,null,null,0,0,0]
[null,11,"Knotková Nela","PKKROUD",13,null,5,4,null,null,4,3,null,null,null,null,null,null,null,null,null,0,0,0]
[null,12,"Mytisková Anna","KKDKNL",12,1,null,null,null,2,null,null,null,null,9,null,null,null,null,null,null,0,0,0]
[null,12,"Švecová Nela","SPATRU",12,null,null,null,3,6,null,null,null,null,3,null,null,null,null,null,null,0,0,0]
[null,14,"Neugebauerová Klára","SPATRU",10,null,null,null,null,null,null,null,5,null,5,null,null,null,null,null,null,0,0,0]
[null,15,"Volavková Leontina","SKKLIB",10,null,null,null,null,3,null,1,null,null,6,null,null,null,null,null,null,0,0,0]
[null,16,"Uhlířová Kristýna","HCSLLOU",8,null,2,1,null,4,2,2,null,1,null,null,null,null,null,null,null,0,0,0]
[null,17,"Kremličková Táňa","KKDKNL",7,4,null,null,null,null,null,null,1,null,2,null,null,null,null,null,null,0,0,0]
[null,18,"Mikešová Veronika","KKDKNL",7,3,null,null,2,null,null,null,2,null,null,null,null,null,null,null,null,0,0,0]
[null,19,"Tlatlová Rozárka",null,6,null,null,null,null,null,1,5,null,null,null,null,null,null,null,null,null,0,0,0]
[null,20,"Syrovátková Anna",null,4,null,null,null,null,null,null,null,null,4,null,null,null,null,null,null,null,0,0,0]
[null,21,"Barratt Adéla","HCLIT",2,null,null,null,null,null,null,null,null,2,null,null,null,null,null,null,null,0,0,0]
[null,22,"Čurgaliová Viktorie","SPATRU",1,null,null,null,1,null,null,null,null,null,null,null,null,null,null,null,null,0,0,0]
[null,23,"Bludská Adéla","SPATRU",1,null,null,null,null,1,null,null,null,null,null,null,null,null,null,null,null,0,0,0]
[null,24,"Vojtěch Václav","KRHRO",1,null,null,null,null,null,null,null,null,null,1,null,null,null,null,null,null,0,0,0]

{"sheet":"1Z","index":1,"n_rows":27,"n_cols":5,"rows_kept":27,"cut":false,"hidden":false,"merged":[[1,1,2,4]]}
[]
[null,"Z1"]
[]
[null,1,"Stonawská Gabriella","BKHK",{"$f":"SUM(LARGE([1]Z1!F4:X4,1)+LARGE([1]Z1!F4:X4,2)+LARGE([1]Z1!F4:X4,3))","v":47}]
[null,2,"Kubušová Viktorie","KKPDY",{"$f":"SUM(LARGE([1]Z1!F5:X5,1)+LARGE([1]Z1!F5:X5,2)+LARGE([1]Z1!F5:X5,3))","v":34}]
[null,3,"Kodedová Alexandra","HCPZKL",{"$f":"SUM(LARGE([1]Z1!F6:X6,1)+LARGE([1]Z1!F6:X6,2)+LARGE([1]Z1!F6:X6,3))","v":33}]
[null,4,"Křivánková Sára","KKPDY",{"$f":"SUM(LARGE([1]Z1!F7:X7,1)+LARGE([1]Z1!F7:X7,2)+LARGE([1]Z1!F7:X7,3))","v":30}]
[null,5,"Syrovátková Anna","HCPZKL",{"$f":"SUM(LARGE([1]Z1!F8:X8,1)+LARGE([1]Z1!F8:X8,2)+LARGE([1]Z1!F8:X8,3))","v":24}]
[null,6,"Macháčková Kateřina","KKSLA",{"$f":"SUM(LARGE([1]Z1!F9:X9,1)+LARGE([1]Z1!F9:X9,2)+LARGE([1]Z1!F9:X9,3))","v":17}]
[null,7,"Horáková Aneta","KKSLA",{"$f":"SUM(LARGE([1]Z1!F10:X10,1)+LARGE([1]Z1!F10:X10,2)+LARGE([1]Z1!F10:X10,3))","v":17}]
[null,8,"Ulrychová Aneta","KKDKNL",{"$f":"SUM(LARGE([1]Z1!F11:X11,1)+LARGE([1]Z1!F11:X11,2)+LARGE([1]Z1!F11:X11,3))","v":15}]
[null,9,"Beran Josef","SPATRU",{"$f":"SUM(LARGE([1]Z1!F12:X12,1)+LARGE([1]Z1!F12:X12,2)+LARGE([1]Z1!F12:X12,3))","v":14}]
[null,10,"Hubená Magdalena","KKDKNL",{"$f":"SUM(LARGE([1]Z1!F13:X13,1)+LARGE([1]Z1!F13:X13,2)+LARGE([1]Z1!F13:X13,3))","v":13}]
[null,11,"Knotková Nela","PKKROUD",{"$f":"SUM(LARGE([1]Z1!F14:X14,1)+LARGE([1]Z1!F14:X14,2)+LARGE([1]Z1!F14:X14,3))","v":13}]
[null,12,"Mytisková Anna","KKDKNL",{"$f":"SUM(LARGE([1]Z1!F15:X15,1)+LARGE([1]Z1!F15:X15,2)+LARGE([1]Z1!F15:X15,3))","v":12}]
[null,12,"Švecová Nela","SPATRU",{"$f":"SUM(LARGE([1]Z1!F16:X16,1)+LARGE([1]Z1!F16:X16,2)+LARGE([1]Z1!F16:X16,3))","v":12}]
[null,14,"Neugebauerová Klára","SPATRU",{"$f":"SUM(LARGE([1]Z1!F17:X17,1)+LARGE([1]Z1!F17:X17,2)+LARGE([1]Z1!F17:X17,3))","v":10}]
[null,15,"Volavková Leontina","SKKLIB",{"$f":"SUM(LARGE([1]Z1!F18:X18,1)+LARGE([1]Z1!F18:X18,2)+LARGE([1]Z1!F18:X18,3))","v":10}]
[null,16,"Uhlířová Kristýna","HCSLLOU",{"$f":"SUM(LARGE([1]Z1!F19:X19,1)+LARGE([1]Z1!F19:X19,2)+LARGE([1]Z1!F19:X19,3))","v":8}]
[null,17,"Kremličková Táňa","KKDKNL",{"$f":"SUM(LARGE([1]Z1!F20:X20,1)+LARGE([1]Z1!F20:X20,2)+LARGE([1]Z1!F20:X20,3))","v":7}]
[null,18,"Mikešová Veronika","KKDKNL",7]
[null,19,"Tlatlová Rozárka",null,{"$f":"SUM(LARGE([1]Z1!F22:X22,1)+LARGE([1]Z1!F22:X22,2)+LARGE([1]Z1!F22:X22,3))","v":6}]
[null,20,"Syrovátková Anna",null,{"$f":"SUM(LARGE([1]Z1!F23:X23,1)+LARGE([1]Z1!F23:X23,2)+LARGE([1]Z1!F23:X23,3))","v":4}]
[null,21,"Barratt Adéla","HCLIT",{"$f":"SUM(LARGE([1]Z1!F24:X24,1)+LARGE([1]Z1!F24:X24,2)+LARGE([1]Z1!F24:X24,3))","v":2}]
[null,22,"Čurgaliová Viktorie","SPATRU",{"$f":"SUM(LARGE([1]Z1!F25:X25,1)+LARGE([1]Z1!F25:X25,2)+LARGE([1]Z1!F25:X25,3))","v":1}]
[null,23,"Bludská Adéla","SPATRU",{"$f":"SUM(LARGE([1]Z1!F26:X26,1)+LARGE([1]Z1!F26:X26,2)+LARGE([1]Z1!F26:X26,3))","v":1}]
[null,24,"Vojtěch Václav","KRHRO",{"$f":"SUM(LARGE([1]Z1!F27:X27,1)+LARGE([1]Z1!F27:X27,2)+LARGE([1]Z1!F27:X27,3))","v":1}]

{"sheet":"Z2","index":2,"n_rows":18,"n_cols":24,"rows_kept":18,"cut":false,"hidden":false,"merged":[[1,1,2,4]]}
[]
[null,"Z2"]
[null,null,null,null,null,"Mem.DK","Slaný","Roudnice","NM","Mělník","DK","LOUNY","Hronov","Smíchov","Kralupy","NM"]
[null,1,"Landová Agáta","PKKROUD",{"$f":"SUM(LARGE(F4:X4,1)+LARGE(F4:X4,2)+LARGE(F4:X4,3))","v":37},null,9,14,null,3,null,12,null,null,11,null,null,null,null,null,null,0,0,0]
[null,2,"Kunstová Anežka ","KKSLA",{"$f":"SUM(LARGE(F5:X5,1)+LARGE(F5:X5,2)+LARGE(F5:X5,3))","v":32},null,12,11,null,1,null,9,null,null,null,null,null,null,null,null,null,0,0,0]
[null,3,"Šauerová Patricie","BKHK",{"$f":"SUM(LARGE(F6:X6,1)+LARGE(F6:X6,2)+LARGE(F6:X6,3))","v":26},9,null,3,8,null,9,null,6,null,null,6,null,null,null,null,null,0,0,0]
[null,4,"Drobná Aneta","KKDKNL",{"$f":"SUM(LARGE(F7:X7,1)+LARGE(F7:X7,2)+LARGE(F7:X7,3))","v":25},null,null,null,null,null,7,null,9,null,null,9,null,null,null,null,null,0,0,0]
[null,5,"Lisá Kateřina","SPAZEB",23,null,2,9,null,9,null,4,null,4,5,null,null,null,null,null,null,0,0,0]
[null,6,"Sklenářová Nella","SPAZEB",22,null,3,6,null,6,null,6,null,10,3,null,null,null,null,null,null,0,0,0]
[null,7,"Turková Natálie","SPAZEB",19,null,4,4,null,null,null,3,null,7,8,null,null,null,null,null,null,0,0,0]
[null,8,"Vondrka Dan","KKSTPHA",17,6,6,5,null,null,null,null,null,2,null,null,null,null,null,null,null,0,0,0]
[null,9,"Hendrychová Erika","KKDKNL",11,3,1,1,5,null,3,null,null,null,null,null,null,null,null,null,null,0,0,0]
[null,10,"Cohornová Markéta","TJSPANM",6,null,null,null,2,null,null,null,1,null,null,3,null,null,null,null,null,0,0,0]
[null,11,"Schmiedová Erika","SPATRU",5,1,null,null,null,null,1,null,3,null,null,1,null,null,null,null,null,0,0,0]
[null,12,"Burdychová Johanka",null,4,null,null,2,null,null,null,2,null,null,null,null,null,null,null,null,null,0,0,0]
[null,13,"Rytiková Viktorie","KBRIC",3,null,null,null,null,null,null,null,null,1,2,null,null,null,null,null,null,0,0,0]
[null,14,"Tůmová Eliška","KBRIC",1,null,null,null,null,null,null,1,null,null,null,null,null,null,null,null,null,0,0,0]
[null,14,"Caesar Marek",null,1,null,null,null,null,null,null,null,null,null,1,null,null,null,null,null,null,0,0,0]

{"sheet":"Z3","index":3,"n_rows":7,"n_cols":24,"rows_kept":7,"cut":false,"hidden":false,"merged":[[1,1,2,4]]}
[]
[null,"Počet postupujících"]
[null,null,null,null,null,"Mem.DK","DK"]
[null,1,"Baum Scarlett","SKKLIB",{"$f":"SUM(LARGE(F4:X4,1)+LARGE(F4:X4,2)+LARGE(F4:X4,3))","v":7},null,7,null,null,null,null,null,null,null,null,null,null,null,null,null,null,0,0,0]
[null,2,"Ježková Alena","SPATRU",{"$f":"SUM(LARGE(F5:X5,1)+LARGE(F5:X5,2)+LARGE(F5:X5,3))","v":6},6,null,null,null,null,null,null,null,null,null,null,null,null,null,null,null,0,0,0]
[null,2,"Mašíková Lucie","SBMEL",6,6,null,null,null,null,null,null,null,null,null,null,null,null,null,null,null,0,0,0]
[null,4,"Pekárková Alena","SPATRU",4,null,4,null,null,null,null,null,null,null,null,null,null,null,null,null,null,0,0,0]

{"sheet":"C1","index":4,"n_rows":20,"n_cols":24,"rows_kept":20,"cut":false,"hidden":false,"merged":[[1,1,2,4]]}
[]
[null,"C1"]
[null,null,null,null,null,"Mem.DK","Slaný","Chomutov","NM","Mělník","DK","Louny","Hronov","Třebová","Smíchov","Ledeč","Kralupy","NM"]
[null,1,"Žáková Julie","HCSTRA",{"$f":"SUM(LARGE(F4:X4,1)+LARGE(F4:X4,2)+LARGE(F4:X4,3))","v":43},9,15,14,9,9,null,8,null,null,8,9,14,null,null,null,null,0,0,0]
[null,2,"Vraspírová Emily","TJKRNVL",{"$f":"SUM(LARGE(F5:X5,1)+LARGE(F5:X5,2)+LARGE(F5:X5,3))","v":34},null,12,11,null,null,null,11,null,null,null,null,11,null,null,null,null,0,0,0]
[null,3,"Burýšková Karolína","SPBMEL",29,6,9,6,6,6,null,14,null,null,5,null,5,null,null,null,null,0,0,0]
[null,4,"Novotná Soňa","TJKRNVL",21,null,7,8,null,3,null,6,null,null,null,null,6,null,null,null,null,0,0,0]
[null,5,"Skalníková Nela","KKPDY",21,3,null,null,1,null,7,null,7,null,null,6,null,7,null,null,null,0,0,0]
[null,6,"Krejbichová Tereza","KKCHOM",16,null,5,4,null,null,null,3,null,7,null,null,4,null,null,null,null,0,0,0]
[null,7,"Juříčková Lucie","TJKRNVL",13,null,null,null,null,null,null,5,null,null,null,null,8,null,null,null,null,0,0,0]
[null,8,"Křížová Štěpánka","KKDKNL",12,1,4,null,3,null,4,null,4,4,null,null,null,4,null,null,null,0,0,0]
[null,9,"Komárková Anna","KKSLA",11,null,6,5,null,null,null,null,null,null,null,null,null,null,null,null,null,0,0,0]
[null,10,"Lukášová Ema","PKKROUD",8,null,3,3,null,null,null,null,null,null,null,null,2,null,null,null,null,0,0,0]
[null,11,"Čeháková Liliana","SKKCHEB",7,null,2,2,null,1,null,null,null,null,null,null,3,null,null,null,null,0,0,0]
[null,12,"Malinová Laura","HCSTRA",6,null,null,null,null,null,null,4,null,null,2,null,null,null,null,null,null,0,0,0]
[null,13,"Papoušková Lucie","ZDARNS",3,null,null,null,null,null,null,null,null,null,null,3,null,null,null,null,null,0,0,0]
[null,14,"Svobodová Klára","HCPZKKLA",3,null,null,1,null,null,null,2,null,null,null,null,null,null,null,null,null,0,0,0]
[null,15,"Jankásková Viktorie","KKSLA",1,null,1,null,null,null,null,null,null,null,null,null,null,null,null,null,null,0,0,0]
[null,15,"Brabcová Klára","ZDARNS",1,null,null,null,null,null,null,null,null,null,null,1,null,null,null,null,null,0,0,0]
[null,15,"Charvátová Barbora",null,1,null,null,null,null,null,null,null,null,null,null,null,1,null,null,null,null,0,0,0]

{"sheet":"B1","index":5,"n_rows":81,"n_cols":27,"rows_kept":81,"cut":false,"hidden":false,"merged":[[1,2,2,5]]}
[]
[null,null,"B1"]
[null,null,null,null,null,null,"Mem.DK","Slaný","Roudnice","Chomutov","NM","Mělník","Dk","LOUNY","Děčín","Hronov","Třebová","Smíchov","Ledeč","Kralupy","NM","Veselí","Žebrák"]
[null,null,1,"Trčová Lenka","PKKROUD",{"$f":"SUM(LARGE(G4:AA4,1)+LARGE(G4:AA4,2)+LARGE(G4:AA4,3))","v":70},null,19,25,26,null,null,null,null,14,null,null,null,null,null,null,null,null,null,0,0,0]
[null,null,2,"Kohutková Tereza","PKKROUD",68,null,12,22,23,null,14,null,17,5,null,null,null,null,22,null,null,23,null,0,0,0]
[null,null,3,"Mühlbachová Eliška","PKKROUD",65,null,9,15,17,null,9,null,15,8,null,null,null,null,28,null,null,20,null,0,0,0]
[null,null,4,"Ziegelheimová Johana","TJKRNVL",60,null,null,null,null,null,17,null,13,null,null,null,10,18,25,null,null,null,null,0,0,0]
[null,null,5,"Curran Kasia Grace","KKSTAPHA",59,8,null,16,null,null,null,4,23,null,null,null,19,null,null,null,17,17,null,0,0,0]
[null,null,6,"Ředinová Nela","PKKROUD",56,null,15,14,18,null,12,null,20,6,null,null,null,null,18,null,null,14,null,0,0,0]
[null,null,7,"Matoušková Anna","KRHRO",56,null,null,null,null,20,null,13,null,null,15,12,null,null,null,21,null,null,null,0,0,0]
[null,null,8,"Živná Sofie","KKROK",54,null,16,null,null,null,19,null,null,null,null,null,null,null,19,null,null,15,null,0,0,0]
[null,null,9,"Čunátová Kateřina","HCMIL",52,null,10,17,7,null,null,null,11,null,null,null,7,15,null,null,20,null,null,0,0,0]
[null,null,10,"Rejtharová Nela","TJSPANM",51,null,null,null,null,17,null,16,null,null,null,null,null,null,null,18,null,null,null,0,0,0]
[null,null,11,"Rout Sofie Isabel",null,50,null,7,19,null,null,11,null,7,null,null,null,null,null,20,null,null,11,null,0,0,0]
[null,null,12,"Nezbedová Natálie","SPBMEL",44,null,7,13,20,null,10,null,null,11,null,null,null,null,null,null,null,null,null,0,0,0]
[null,null,13,"Pichlíková Zora","KKROK",40,null,6,null,null,null,5,null,14,null,null,null,13,null,null,null,null,13,null,0,0,0]
[null,null,14,"Lisina Sofia","KK PDY",40,14,null,null,null,14,null,7,null,null,12,null,null,12,null,8,null,null,null,0,0,0]
[null,null,15,"Vodvářková Nela","KK PDY",39,11,null,null,null,5,null,6,null,null,18,null,null,null,null,10,null,null,null,0,0,0]
[null,null,16,"Janatová Andrea","TJSPANM",39,null,null,null,null,11,null,10,null,null,9,13,null,null,null,15,null,null,null,0,0,0]
[null,null,17,"Tycová Daniela","KKROK",37,null,8,null,null,null,null,null,9,null,null,null,16,null,9,null,null,12,null,0,0,0]
[null,null,18,"Konečná Laura Viktorie","KKSLA",37,null,3,2,12,null,8,null,3,null,null,null,null,null,15,null,10,null,null,0,0,0]
[null,null,19,"Koutníková Eliška","HCMIL",35,null,7,11,15,null,null,null,null,null,null,null,8,9,null,null,8,null,null,0,0,0]
[null,null,20,"Benková Aneta","SKKRCHEB",34,null,6,null,16,null,null,null,4,null,null,null,null,null,10,null,null,8,null,0,0,0]
[null,"N",21,"Čížková Kristýna","HCSLLOU",34,null,9,10,14,null,null,null,10,4,null,7,null,null,null,null,null,null,null,0,0,0]
[null,"N",22,"Stets Yeva","KKDKNL",33,4,3,null,null,9,null,8,null,null,10,10,null,null,null,13,null,null,null,0,0,0]
[null,"N",23,"Webersinková Tereza","KKSTAPHA",33,null,11,10,null,null,null,null,null,null,null,null,9,null,12,null,null,null,null,0,0,0]
[null,"N",24,"Salvová Natálie","SKKRCHEB",33,null,null,null,null,null,null,null,8,null,null,null,null,8,17,null,null,7,null,0,0,0]
[null,"N",25,"Ondráčková Barbora","KKTEL",33,null,null,null,null,null,null,null,null,null,null,11,null,10,null,null,12,null,null,0,0,0]
[null,null,26,"Podsedníková Lea","TJSPANM",30,null,null,null,null,10,null,null,null,null,null,9,null,null,null,11,null,null,null,0,0,0]
[null,null,27,"Kebrlová Jana",null,26,null,1,7,null,null,7,null,12,null,null,null,4,null,6,null,null,null,null,0,0,0]
[null,null,28,"Romancovová Klára","KKSTAPHA",24,null,13,null,null,null,null,null,null,null,null,null,11,null,null,null,null,null,null,0,0,0]
[null,null,29,"Moravcová Eva","BKRIC",24,null,null,null,null,4,null,null,5,null,null,null,6,null,13,null,null,null,null,0,0,0]
[null,null,30,"Šimonová Veronika","KKDKNL",23,6,null,null,null,12,null,5,null,null,null,null,null,null,null,null,null,null,null,0,0,0]
[null,null,31,"Pancová Linda","HCLIT",22,null,4,5,13,null,3,null,null,null,null,null,null,null,null,null,null,null,null,0,0,0]
[null,null,32,"Torlopova Polina","HCPZKKLA",22,null,null,null,8,null,null,null,null,null,null,null,null,null,14,null,null,null,null,0,0,0]
[null,null,33,"Rousková Denisa","TJSPANM",{"$f":"SUM(LARGE(G36:AA36,1)+LARGE(G36:AA36,2)+LARGE(G36:AA36,3))","v":22},null,null,null,null,8,null,null,null,null,null,5,null,null,null,9,null,null,null,0,0,0]
[null,null,34,"Borecká Karolína ","KKNYM",22,null,null,null,null,null,null,null,null,null,5,4,5,7,null,6,9,null,null,0,0,0]
[null,null,35,"Martásková Daniela","HCLIT",21,null,2,8,11,null,null,null,null,null,null,null,null,null,null,null,null,null,null,0,0,0]
[null,null,36,"Hájková Johana","HCSLLOU",21,null,null,12,9,null,null,null,null,null,null,null,null,null,null,null,null,null,null,0,0,0]
[null,null,37,"Čížková Kristýna","KKCT",21,null,null,null,null,2,null,null,null,null,null,null,null,null,16,3,null,null,null,0,0,0]
[null,null,38,"Sedlmajerová Edita ","KKNYM",21,null,null,null,null,null,null,null,null,null,null,null,null,null,null,7,14,null,null,0,0,0]
[null,null,39,"Juříčková Eliška","TJKRNVL",20,null,null,6,6,null,6,null,6,null,null,null,null,null,8,null,null,null,null,0,0,0]
[null,null,40,"Třísková Elen ","KKCT",19,3,null,null,null,3,null,null,null,null,4,2,null,null,null,12,null,null,null,0,0,0]
[null,null,41,"Taucová Barbora ","KRHRO",19,null,null,null,null,null,null,null,null,null,7,8,null,null,null,4,null,null,null,0,0,0]
[null,null,42,"Povějšilová Klára","SPATRU",16,2,null,null,null,6,null,1,null,null,8,null,null,null,null,1,null,null,null,0,0,0]
[null,null,43,"Červená Helena",null,16,null,2,null,10,null,4,null,null,null,null,null,null,null,null,null,null,null,null,0,0,0]
[null,null,44,"Kunstová Anežka","KKSLA",16,null,null,null,null,null,null,null,null,null,null,null,null,null,7,null,null,9,null,0,0,0]
[null,null,45,"Vovsová Tina","KKDKNL",15,5,null,null,null,7,null,3,null,null,null,null,null,null,null,null,null,null,null,0,0,0]
[null,null,46,"Dvořáková Kateřina","KKMIL",14,null,5,4,null,null,null,null,null,null,null,null,null,null,null,null,5,null,null,0,0,0]
[null,null,47,"Pincová Elena","KKMIL",13,null,null,3,4,null,null,null,null,null,null,null,null,5,null,null,4,null,null,0,0,0]
[null,null,48,"Synková Michaela ","KKCT",12,null,null,null,null,1,null,null,null,null,null,6,null,null,null,5,null,null,null,0,0,0]
[null,null,49,"Chalupová Anna","KKTEL",12,null,null,null,null,null,null,null,null,null,null,null,null,6,null,null,6,null,null,0,0,0]
[null,null,50,"Kotalová Lucie","KKSTAPHA",11,null,null,null,null,null,null,null,null,null,null,null,3,null,4,null,null,4,null,0,0,0]
[null,null,51,"Mašátová Ela","KKTEL",11,null,null,null,null,null,null,null,null,null,null,null,null,4,null,null,7,null,null,0,0,0]
[null,null,52,"Mottlová Diana",null,11,null,null,null,null,null,null,null,null,null,null,null,null,null,11,null,null,null,null,0,0,0]
[null,null,53,"Brůhová Aneta","TJLVNL",11,null,null,null,null,null,null,null,null,null,null,null,null,null,null,null,11,null,null,0,0,0]
[null,null,54,"Gálová Pavlína","KKCHOM",10,null,null,null,3,null,2,null,2,null,null,null,null,null,5,null,null,null,null,0,0,0]
[null,null,55,"Kabrlová Jana ","SPAZEB",10,null,null,null,null,null,null,null,null,null,null,null,null,null,null,null,null,10,null,0,0,0]
[null,null,56,"Rejtharová Natálie","TJKRNACH",9,null,null,null,null,null,null,null,null,null,6,1,null,null,null,2,null,null,null,0,0,0]
[null,null,57,"Štáflová Amálie","KKSTAPHA",7,null,5,null,null,null,null,null,null,null,null,null,2,null,null,null,null,null,null,0,0,0]
[null,null,58,"Silná Anna Emílie ","HCPZKKLA",7,null,null,null,5,null,null,null,null,null,null,null,null,null,2,null,null,null,null,0,0,0]
[null,null,59,"Vinařová Liliana","BKRIC",6,null,null,null,null,null,null,null,null,1,null,null,null,3,null,null,null,2,null,0,0,0]
[null,null,60,"Kujal Filip",null,6,null,null,null,null,null,null,null,null,null,null,null,null,null,null,null,null,6,null,0,0,0]
[null,null,61,"Kotajná Dora",null,5,null,null,null,null,null,null,null,null,null,null,null,null,null,null,null,null,5,null,0,0,0]
[null,null,62,"Kotrbová Adéla","KKMIL",4,null,1,1,null,null,null,null,null,null,null,null,null,null,null,null,2,null,null,0,0,0]
[null,null,63,"Vondříčková Kateřina","HCPZKKLA",4,null,null,null,1,null,null,null,null,null,null,null,null,null,3,null,null,null,null,0,0,0]
[null,null,64,"Andrlová Tereza","KKDKNL",4,null,null,null,null,null,null,2,null,null,2,null,null,null,null,null,null,null,null,0,0,0]
[null,null,65,"Dvořáková Amálie","HCVJH",{"$f":"SUM(LARGE(G68:AA68,1)+LARGE(G68:AA68,2)+LARGE(G68:AA68,3))","v":4},null,null,null,null,null,null,null,null,null,null,null,null,1,null,null,3,null,null,0,0,0]
[null,null,66,"Sochorová Tereza","HCLIT",3,null,null,null,2,null,1,null,null,null,null,null,null,null,null,null,null,null,null,0,0,0]
[null,null,67,"Burdychová Johanka",null,3,null,null,null,null,null,null,null,null,3,null,null,null,null,null,null,null,null,null,0,0,0]
[null,null,68,"Černický Matěj","TJKRNACH",3,null,null,null,null,null,null,null,null,null,3,null,null,null,null,null,null,null,null,0,0,0]
[null,null,69,"Čížová Natálie","KKCT",3,null,null,null,null,null,null,null,null,null,null,3,null,null,null,null,null,null,null,0,0,0]
[null,null,70,"Lidmilová Karolína",null,3,null,null,null,null,null,null,null,null,null,null,null,null,null,null,null,null,3,null,0,0,0]
[null,null,71,"Vinogradova Anastasie","TJLVNL",2,null,null,null,null,null,null,null,1,null,null,null,null,null,null,null,1,null,null,0,0,0]
[null,null,72,"Bartyzalová Tereza",null,2,null,null,null,null,null,null,null,null,2,null,null,null,null,null,null,null,null,null,0,0,0]
[null,null,73,"Brabcová Kristýna","ZDARNS",2,null,null,null,null,null,null,null,null,null,null,null,null,2,null,null,null,null,null,0,0,0]
[null,null,74,"Drobná Aneta","KKDKNL",1,1,null,null,null,null,null,null,null,null,null,null,null,null,null,null,null,null,null,0,0,0]
[null,null,75,"Švorc Ondřej Jiří","KRHRO",1,null,null,null,null,null,null,null,null,null,1,null,null,null,null,null,null,null,null,0,0,0]
[null,null,76,"Pavlíková Tereza","KKSTAPHA",1,null,null,null,null,null,null,null,null,null,null,null,1,null,null,null,null,null,null,0,0,0]
[null,null,77,"Bartošíková Eliška","KKNYM",1,null,null,null,null,null,null,null,null,null,null,null,null,null,1,null,null,null,null,0,0,0]
[null,null,78,"Svobodová Ada",null,1,null,null,null,null,null,null,null,null,null,null,null,null,null,null,null,null,1,null,0,0,0]

{"sheet":"B2","index":6,"n_rows":40,"n_cols":24,"rows_kept":40,"cut":false,"hidden":false,"merged":[[1,1,2,4]]}
[]
[null,"B2"]
[null,null,null,null,null,"Mem.DK","Slaný","Chomutov","NM","Mělník","DK","LOUNY","Hronov","Třebová","Smíchov","Ledeč","Kralupy","NM","Veselí"]
[null,1,"Curran Romy","KKSTAPHA",{"$f":"SUM(LARGE(F4:X4,1)+LARGE(F4:X4,2)+LARGE(F4:X4,3))","v":48},9,null,null,null,null,12,16,null,null,17,15,14,null,null,null,null,0,0,0]
[null,2,"Hlavín Amélie","KKMIL",44,null,16,14,null,null,null,13,null,null,14,12,null,null,8,null,null,0,0,0]
[null,3,"Verissimo Mia","HCSLLOU",36,1,19,8,null,9,null,5,null,null,null,null,8,null,null,null,null,0,0,0]
[null,4,"Panošková Kristina","KKMIL",31,null,10,2,null,null,null,10,null,null,6,7,null,null,11,null,null,0,0,0]
[null,5,"Vindeman Ema","KKSTAPHA",30,5,null,4,null,null,null,null,null,null,11,null,null,null,14,null,null,0,0,0]
[null,6,"Křížová Karolína","KKDKNL",29,2,9,null,null,null,6,null,12,7,null,null,null,8,null,null,null,0,0,0]
[null,7,"Kňourková Anežka","TJKRANVL",28,4,5,null,null,null,9,7,null,null,8,null,11,null,null,null,null,0,0,0]
[null,8,"Dufková Julie","SPATRU",28,3,null,null,8,null,null,null,9,null,null,null,null,11,null,null,null,0,0,0]
[null,9,"Mikšovská Kristýna","KKMIL",27,null,13,null,null,null,null,8,null,null,5,6,null,null,6,null,null,0,0,0]
[null,10,"Havránková Tereza","SBMEL",22,null,null,null,null,1,null,null,null,null,9,9,4,null,null,null,null,0,0,0]
[null,11,"Mullerová Sopfie","KKSTAPHA",19,7,null,null,null,null,null,null,null,null,7,null,null,null,5,null,null,0,0,0]
[null,12,"Rácová Lenka","HCSLOU",16,null,11,5,null,null,null,null,null,null,null,null,null,null,null,null,null,0,0,0]
[null,13,"Chadraba Matyáš","KBRIC",15,null,null,null,null,null,null,6,null,4,null,5,3,null,2,null,null,0,0,0]
[null,14,"Višteinová Rosálie",null,14,null,8,null,null,6,null,null,null,null,null,null,null,null,null,null,null,0,0,0]
[null,15,"Hudoková Kateřina","KKDKNL",13,13,null,null,null,null,null,null,null,null,null,null,null,null,null,null,null,0,0,0]
[null,16,"Karbanová Kateřina","KKDKNL",13,null,3,null,null,null,null,null,null,10,null,null,null,null,null,null,null,0,0,0]
[null,17,"Tichá Lucie",null,12,null,6,null,null,null,null,null,null,null,null,null,6,null,null,null,null,0,0,0]
[null,18,"Pírková Ellen","KBRIC",12,null,4,null,5,null,null,2,null,2,1,3,null,null,null,null,null,0,0,0]
[null,19,"Plíšková Kateřina","HCSLOU",11,null,null,11,null,null,null,null,null,null,null,null,null,null,null,null,null,0,0,0]
[null,20,"Pavlíčková Liliana",null,11,null,7,null,null,null,null,4,null,null,null,null,null,null,null,null,null,0,0,0]
[null,20,"Šimonová Veronika","KKDKNL",11,null,null,null,null,null,null,null,6,null,null,null,null,5,null,null,null,0,0,0]
[null,22,"Malevičová Tereza","KKSTaPHA",10,null,null,3,null,null,3,null,null,null,4,null,null,null,null,null,null,0,0,0]
[null,23,"Herko Sofia","HCLED",9,null,null,null,null,null,2,null,null,null,2,4,null,null,3,null,null,0,0,0]
[null,24,"Hamplová Dorota","KKDKNL",7,null,null,2,2,null,1,null,3,1,null,null,null,null,null,null,null,0,0,0]
[null,25,"Mikšovská Kristýna","KKMIL",6,null,null,6,null,null,null,null,null,null,null,null,null,null,null,null,null,0,0,0]
[null,26,"Borusíková Michaela","TJLVNL",6,null,null,null,null,null,null,3,null,null,3,null,null,null,null,null,null,0,0,0]
[null,26,"Vovsová Tina","KKDKNL",6,null,null,null,null,null,null,null,4,null,null,null,null,2,null,null,null,0,0,0]
[null,28,"Chromcová Klára","KKNYM",5,null,null,null,null,null,null,null,null,null,null,null,5,null,null,null,null,0,0,0]
[null,29,"Neugebauerová Kristýna","SPATRU",5,null,null,null,null,null,null,null,2,null,null,null,null,3,null,null,null,0,0,0]
[null,30,"Klármanová Viktorie","HCLIT",5,null,2,1,null,null,null,null,null,null,null,null,2,null,null,null,null,0,0,0]
[null,31,"Pilous David","KKSPHA",4,null,null,null,null,null,4,null,null,null,null,null,null,null,null,null,null,0,0,0]
[null,31,"Weissová Sophie","TJLVNL",4,null,null,null,null,null,null,null,null,null,null,null,null,null,4,null,null,0,0,0]
[null,33,"Havlíčková Liliana","BKRIC",3,null,null,null,null,null,null,null,null,null,null,2,1,null,null,null,null,0,0,0]
[null,34,"Vaisová Alžběta","SPATRU",2,null,null,null,null,null,null,null,1,null,null,null,null,1,null,null,null,0,0,0]
[null,34,"Rosová Terezie","HCVJH",2,null,null,null,null,null,null,null,null,null,null,1,null,null,1,null,null,0,0,0]
[null,36,"Kazatelová Nicolleta","KKSLA",1,null,1,null,null,null,null,null,null,null,null,null,null,null,null,null,null,0,0,0]
[null,36,"Hájková Johana",null,1,null,null,null,null,null,null,1,null,null,null,null,null,null,null,null,null,0,0,0]

{"sheet":"A1","index":7,"n_rows":66,"n_cols":24,"rows_kept":66,"cut":false,"hidden":false,"merged":[[1,1,2,4]]}
[]
[null,"A1"]
[null,null,null,null,null,"Mem.DK","Roudnice","Chomutov","NM","DK","Louny","Děčín","Hronov","Třebová","Smíchov","Ledeč","Kralupy","NM","Veselí","Žebrák"]
[null,1,"Hlušková Sára ","KRHRO",{"$f":"SUM(LARGE(F4:X4,1)+LARGE(F4:X4,2)+LARGE(F4:X4,3))","v":75},15,null,null,27,25,null,null,20,14,null,null,null,23,null,null,null,0,0,0]
[null,2,"Macková Kateřina","TJKNACH",{"$f":"SUM(LARGE(F5:X5,1)+LARGE(F5:X5,2)+LARGE(F5:X5,3))","v":56},null,null,null,24,null,null,null,12,null,null,null,null,20,null,null,null,0,0,0]
[null,3,"Macháčková Anna","KKCT",54,null,null,null,16,22,null,null,10,5,null,16,null,15,null,null,null,0,0,0]
[null,4,"Kejzarová Barbora","KKDKNL",52,9,null,null,19,16,null,null,14,null,null,null,null,17,null,null,null,0,0,0]
[null,5,"Trhlíková Natálie","KKPDY",51,null,null,null,21,null,null,null,17,null,null,13,null,null,null,null,null,0,0,0]
[null,6,"Volodina Žaneta","TJLVNL",46,null,7,null,null,null,19,null,null,null,12,null,15,null,6,null,null,0,0,0]
[null,7,"Petrichsheva Apolenka","KKPDY",46,6,null,null,17,15,null,null,7,null,null,6,null,14,null,null,null,0,0,0]
[null,8,"Součková Sabina","KKDKNL",44,7,null,null,15,17,null,null,null,null,null,null,null,12,null,null,null,0,0,0]
[null,9,"Dymáková Elen","KRCHR",42,null,null,null,11,19,null,null,null,null,null,null,null,12,null,null,null,0,0,0]
[null,10,"Bohuňková Tereza","TJSNM",41,null,null,null,18,null,null,null,11,null,null,null,null,12,null,null,null,0,0,0]
[null,11,"Andrlíková Helena","KKZAP",38,null,null,2,null,null,11,null,null,null,null,null,18,null,9,null,null,0,0,0]
[null,11,"Vosátková Eliška","BKRIC",38,null,null,null,null,12,null,2,null,null,null,11,null,null,null,15,null,0,0,0]
[null,13,"Foffová Simona","KKCT",37,null,null,null,null,null,13,null,9,11,null,null,null,13,null,null,null,0,0,0]
[null,14,"Horton Sofie Anna","BKRIC",35,null,null,null,null,null,null,10,null,null,null,19,6,null,null,null,null,0,0,0]
[null,15,"Havlíčková Marie","KKPDY",35,null,null,null,13,14,null,null,8,null,null,3,null,null,null,null,null,0,0,0]
[null,16,"Pidrmanová Amálie","HCSLLOU",35,null,13,5,null,null,10,7,null,null,null,null,12,null,null,null,null,0,0,0]
[null,17,"Hejmalíčková Eliška","KBRIC",32,null,null,null,14,null,9,null,null,6,9,8,null,null,null,null,null,0,0,0]
[null,18,"Šejblová Hana","KKDKNL",30,3,null,null,10,12,null,null,null,null,null,null,null,8,null,null,null,0,0,0]
[null,19,"Vovsová Vanda","KKDKNL",28,5,null,null,12,7,null,null,null,null,null,null,null,9,null,null,null,0,0,0]
[null,19,"Fialová Monika","KKPDY",28,null,null,null,8,11,null,null,null,null,null,9,null,null,null,null,null,0,0,0]
[null,21,"Mercante Jasmine","HCSLLOU",25,1,null,13,null,null,8,null,null,null,3,null,4,null,null,null,null,0,0,0]
[null,22,"Jotovová Dominka","KKSTAPHA",25,null,5,7,null,null,null,null,null,null,6,7,9,null,null,9,null,0,0,0]
[null,23,"Drapáková Adriana","BKHK",24,null,null,null,9,10,null,null,5,null,null,null,null,null,null,null,null,0,0,0]
[null,24,"Hrtoňová Klára Marie","KKMIL",24,null,10,10,null,null,4,null,null,null,4,4,null,null,null,null,null,0,0,0]
[null,25,"Vachtová Amálie","KKPDY",21,4,null,null,5,8,null,null,6,null,null,2,null,7,null,null,null,0,0,0]
[null,26,"Straková Tereza","KKDKNL",20,2,null,null,6,9,null,null,4,null,null,null,null,5,null,null,null,0,0,0]
[null,27,"Černá Marie",null,16,null,null,null,null,null,16,null,null,null,null,null,null,null,null,null,null,0,0,0]
[null,28,"Fillová Josefína","KBCER",16,null,null,null,null,null,null,null,null,null,null,null,10,null,null,6,null,0,0,0]
[null,29,"Vejsadová Anežka",null,16,null,4,null,null,null,null,null,null,null,null,null,7,null,null,5,null,0,0,0]
[null,29,"Němečková Julie","KKTEL",16,null,null,null,null,null,null,null,null,2,null,10,null,null,4,null,null,0,0,0]
[null,31,"Vondráčková Nikol","SPATRU",{"$f":"SUM(LARGE(F34:X34,1)+LARGE(F34:X34,2)+LARGE(F34:X34,3))","v":13},null,null,null,7,null,null,null,null,null,null,null,null,6,null,null,null,0,0,0]
[null,32,"Smolíková Jana","TJLVNL",13,null,2,null,null,null,6,null,null,null,null,null,5,null,2,null,null,0,0,0]
[null,33,"Šulistová Barbora","KKSTAPHA",12,12,null,null,null,null,null,null,null,null,null,null,null,null,null,null,null,0,0,0]
[null,33,"Balounová Nicol","TJLVNL",{"$f":"SUM(LARGE(F37:X37,1)+LARGE(F37:X37,2)+LARGE(F37:X37,3))","v":12},null,null,null,null,null,null,null,null,null,null,null,null,null,12,null,null,0,0,0]
[null,33,"Suchitrová Ela",null,12,null,null,null,null,null,null,null,null,null,null,null,null,null,null,12,null,0,0,0]
[null,36,"Zuzaňáková Anna","BKHK",11,null,null,null,3,5,null,null,3,null,null,null,null,null,null,null,null,0,0,0]
[null,37,"Witošová Eliška","HCSLLOU",{"$f":"SUM(LARGE(F40:X40,1)+LARGE(F40:X40,2)+LARGE(F40:X40,3))","v":8},null,null,null,null,null,null,null,null,null,null,null,8,null,null,null,null,0,0,0]
[null,37,"Sekyrová Tereza","SPATRU",{"$f":"SUM(LARGE(F41:X41,1)+LARGE(F41:X41,2)+LARGE(F41:X41,3))","v":8},null,null,null,null,null,null,null,null,8,null,null,null,null,null,null,null,0,0,0]
[null,39,"Dufková Veronika","SKJDOM",8,null,null,null,null,null,5,null,null,null,null,null,null,null,null,3,null,0,0,0]
[null,39,"Salavová Julie","BKRIC",{"$f":"SUM(LARGE(F43:X43,1)+LARGE(F43:X43,2)+LARGE(F43:X43,3))","v":8},null,null,null,null,null,null,null,null,null,null,5,3,null,null,null,null,0,0,0]
[null,41,"Hájková Eliška","KKCT",{"$f":"SUM(LARGE(F44:X44,1)+LARGE(F44:X44,2)+LARGE(F44:X44,3))","v":8},null,null,null,null,3,null,null,null,4,null,null,null,1,null,null,null,0,0,0]
[null,42,"Uherčíková Veronika",null,7,null,null,null,null,null,7,null,null,null,null,null,null,null,null,null,null,0,0,0]
[null,42,"Papežová Aneta","KKROK",7,null,null,null,null,null,null,null,null,null,null,null,null,null,null,7,null,0,0,0]
[null,44,"Příhodová Viktorie","KKDKNL",{"$f":"SUM(LARGE(F47:X47,1)+LARGE(F47:X47,2)+LARGE(F47:X47,3))","v":6},null,null,null,null,6,null,null,null,null,null,null,null,null,null,null,null,0,0,0]
[null,45,"Plochová Tereza",null,6,null,3,3,null,null,null,null,null,null,null,null,null,null,null,null,null,0,0,0]
[null,46,"Chramosilová Eliška","SPAZEB",6,null,1,null,null,null,1,null,null,null,null,null,null,null,null,4,null,0,0,0]
[null,46,"Brožová Veronika","SPATRU",6,null,null,null,4,1,null,null,1,null,null,null,null,null,null,null,null,0,0,0]
[null,48,"Blehová Nikola ","KKCHOM",5,null,null,4,null,null,null,1,null,null,null,null,null,null,null,null,null,0,0,0]
[null,49,"Krtičková Barbora","HCSLLOU",{"$f":"SUM(LARGE(F52:X52,1)+LARGE(F52:X52,2)+LARGE(F52:X52,3))","v":5},null,null,null,null,null,3,null,null,null,2,null,null,null,null,null,null,0,0,0]
[null,50,"Ježková Alena","SPATRU",5,null,null,null,1,2,null,null,null,null,null,null,null,2,null,null,null,0,0,0]
[null,51,"Dvořáková Eliška","SPATRU",{"$f":"SUM(LARGE(F54:X54,1)+LARGE(F54:X54,2)+LARGE(F54:X54,3))","v":4},null,null,null,null,4,null,null,null,null,null,null,null,null,null,null,null,0,0,0]
[null,51,"Havlíčková Liliana","BKRIC",{"$f":"SUM(LARGE(F55:X55,1)+LARGE(F55:X55,2)+LARGE(F55:X55,3))","v":4},null,null,null,null,null,null,4,null,null,null,null,null,null,null,null,null,0,0,0]
[null,51,"Hladíková Anna","TJSNM",{"$f":"SUM(LARGE(F56:X56,1)+LARGE(F56:X56,2)+LARGE(F56:X56,3))","v":4},null,null,null,null,null,null,null,null,null,null,null,null,4,null,null,null,0,0,0]
[null,54,"Pekárková Alena","SPATRU",4,null,null,null,2,null,null,null,2,null,null,null,null,null,null,null,null,0,0,0]
[null,55,"Mezerová Radka","KKROK",4,null,null,null,null,null,2,null,null,null,1,null,1,null,null,1,null,0,0,0]
[null,56,"Oplatková Hana","HCMDS",3,null,null,null,null,null,null,null,null,3,null,null,null,null,null,null,null,0,0,0]
[null,56,"Zuzaňáková Anna","BKHK",3,null,null,null,null,null,null,null,null,null,null,null,null,3,null,null,null,0,0,0]
[null,56,"Kolmanová Karolína","TJLVNL",3,null,null,null,null,null,null,null,null,null,null,null,null,null,3,null,null,0,0,0]
[null,59,"Havránek Jakub","SKKCHEB",{"$f":"SUM(LARGE(F62:X62,1)+LARGE(F62:X62,2)+LARGE(F62:X62,3))","v":3},null,null,1,null,null,null,null,null,null,null,null,2,null,null,null,null,0,0,0]
[null,60,"Henčová Michaela",null,2,null,null,null,null,null,null,null,null,null,null,null,null,null,null,2,null,0,0,0]
[null,61,"Stejskalová Veronika","HCMDS",1,null,null,null,null,null,null,null,null,1,null,null,null,null,null,null,null,0,0,0]
[null,61,"Máca Jakub","KKTEL",1,null,null,null,null,null,null,null,null,null,null,1,null,null,null,null,null,0,0,0]
[null,61,"Bužková Veronika","TJLVNL",1,null,null,null,null,null,null,null,null,null,null,null,null,null,1,null,null,0,0,0]

{"sheet":"A2","index":8,"n_rows":29,"n_cols":24,"rows_kept":29,"cut":false,"hidden":false,"merged":[[1,1,2,4]]}
[]
[null,"A2"]
[null,null,null,null,null,"Mem. DK","Slaný","Roudnice","Chomutov","NM","DK","Louny","Hronov","Třebová","Smíchov","NM","Žebrák"]
[null,1,"Vojtěchovská Lucie","SPATRU",{"$f":"SUM(LARGE(F4:X4,1)+LARGE(F4:X4,2)+LARGE(F4:X4,3))","v":30},3,null,null,null,5,7,null,11,7,null,12,null,null,null,null,null,0,0,0]
[null,2,"Břeň Štěpán","KKDKNL",28,6,null,null,null,13,9,null,null,null,null,null,null,null,null,null,null,0,0,0]
[null,3,"Vrábelová Tereza",null,23,null,null,9,5,null,null,9,null,null,null,null,null,null,null,null,null,0,0,0]
[null,4,"Březnová Michaela","KKPDY",22,12,null,null,null,10,null,null,null,null,null,null,null,null,null,null,null,0,0,0]
[null,5,"Romancovová Barbora","KKSTAPHA",19,null,10,null,null,null,null,null,null,null,9,null,null,null,null,null,null,0,0,0]
[null,6,"Šakirová Fanny","KKSTAPHA",19,null,5,6,8,null,null,null,null,null,3,null,null,null,null,null,null,0,0,0]
[null,7,"Kočnarová Eliška","BKHK",18,9,null,null,null,null,null,null,null,null,null,9,null,null,null,null,null,0,0,0]
[null,8,"Vacková Kateřina","KRHRO",{"$f":"SUM(LARGE(F11:X11,1)+LARGE(F11:X11,2)+LARGE(F11:X11,3))","v":14},4,null,null,null,null,4,null,null,null,null,6,null,null,null,null,null,0,0,0]
[null,9,"Dymáková Julie","KRACHR",14,null,null,null,null,4,2,null,8,null,null,2,null,null,null,null,null,0,0,0]
[null,10,"Zajícová Adéla",null,13,null,13,null,null,null,null,null,null,null,null,null,null,null,null,null,null,0,0,0]
[null,11,"Braunová Aneta","SPAZEB",12,null,7,null,null,null,null,null,null,null,null,null,5,null,null,null,null,0,0,0]
[null,12,"Marková Tereza","TJSPANM",11,null,null,null,null,7,null,null,null,null,null,4,null,null,null,null,null,0,0,0]
[null,13,"Smiovská Karolína","KKSTAPHA",9,null,3,null,null,null,null,null,null,null,6,null,null,null,null,null,null,0,0,0]
[null,14,"Vinšová Ema",null,8,null,null,null,null,null,null,null,null,null,null,null,8,null,null,null,null,0,0,0]
[null,15,"Prošková Adéla","KKSLA",7,null,4,null,null,null,null,3,null,null,null,null,null,null,null,null,null,0,0,0]
[null,16,"Kortanová Eliška",null,7,null,2,3,2,null,null,null,null,null,null,null,null,null,null,null,null,0,0,0]
[null,17,"Pírková Nela","KBRIC",7,null,1,null,null,2,null,1,null,4,1,null,null,null,null,null,null,0,0,0]
[null,18,"Witošová Eliška",null,6,null,null,null,null,null,null,6,null,null,null,null,null,null,null,null,null,0,0,0]
[null,19,"Černická Anna","TJKRNACH",6,null,null,null,null,null,null,null,5,null,null,1,null,null,null,null,null,0,0,0]
[null,20,"Rubášová Adéla","KKPDY",5,null,null,null,null,3,null,null,2,null,null,null,null,null,null,null,null,0,0,0]
[null,20,"Janků Alžběta","KKNYM",5,null,null,null,null,null,null,null,null,null,null,3,2,null,null,null,null,0,0,0]
[null,22,"Černický Jakub","TJKRNACH",3,null,null,null,null,null,null,null,3,null,null,null,null,null,null,null,null,0,0,0]
[null,23,"Zouzalová Kristýna","KKPDY",2,2,null,null,null,null,null,null,null,null,null,null,null,null,null,null,null,0,0,0]
[null,24,"Jičiřiná Eliška","KKPDY",2,1,null,null,null,null,1,null,null,null,null,null,null,null,null,null,null,0,0,0]
[null,24,"Valášková Adéla","TSSPANM",2,null,null,null,null,1,null,null,1,null,null,null,null,null,null,null,null,0,0,0]
[null,26,"Zajíčková Tereza",null,1,null,null,1,null,null,null,null,null,null,null,null,null,null,null,null,null,0,0,0]

{"sheet":"List2","index":9,"n_rows":0,"n_cols":0,"rows_kept":0,"cut":false,"hidden":false,"merged":[]}

{"sheet":"List1","index":10,"n_rows":0,"n_cols":0,"rows_kept":0,"cut":false,"hidden":false,"merged":[]}